[Event "*** SCC Grand Prix: Titled Tuesday Blitz"]
[Site "Chess.com"]
[Date "2020.10.13"]
[Round "2"]
[White "JoakimVonAnd"]
[Black "novocane"]
[Result "1-0"]
[WhiteElo "2489"]
[BlackElo "2270"]
[TimeControl "180+1"]
[EndTime "10:16:17 PDT"]
[Termination "JoakimVonAnd won by resignation"]

1. d4 {[%clk 0:03:00.9]} 1... Nf6 {[%clk 0:02:59.3]} 2. c4 {[%clk 0:03:01.2]}
2... e6 {[%clk 0:02:59.6]} 3. Nf3 {[%clk 0:03:01.1]} 3... b6 {[%clk 0:02:58.6]}
4. g3 {[%clk 0:03:01.2]} 4... Ba6 {[%clk 0:02:57.5]} 5. Qb3 {[%clk 0:02:53.2]}
5... c5 {[%clk 0:02:52.5]} 6. Bg2 {[%clk 0:02:49.1]} 6... Bb7 {[%clk 0:02:31.8]}
7. d5 {[%clk 0:02:38]} 7... exd5 {[%clk 0:02:27.7]} 8. Nfd2 {[%clk 0:02:37.6]}
8... d6 {[%clk 0:02:02]} 9. cxd5 {[%clk 0:02:35.6]} 9... Be7 {[%clk 0:01:55.6]}
10. Nc3 {[%clk 0:02:34.8]} 10... O-O {[%clk 0:01:55.1]} 11. O-O {[%clk 0:02:34]}
11... a6 {[%clk 0:01:55]} 12. a4 {[%clk 0:02:33.8]} 12... Nbd7 {[%clk
0:01:54.9]} 13. Nc4 {[%clk 0:02:33.4]} 13... b5 {[%clk 0:01:42.6]} 14. axb5
{[%clk 0:02:29.4]} 14... axb5 {[%clk 0:01:42.6]} 15. Rxa8 {[%clk 0:02:29.1]}
15... Qxa8 {[%clk 0:01:15.9]} 16. Nxb5 {[%clk 0:02:26.8]} 16... Bxd5 {[%clk
0:01:04]} 17. Nc7 {[%clk 0:02:09.9]} 17... Bxc4 {[%clk 0:00:57.5]} 18. Qxc4
{[%clk 0:02:10.8]} 18... Qc8 {[%clk 0:00:50.7]} 19. Nb5 {[%clk 0:02:01.6]} 19...
Ne5 {[%clk 0:00:45.6]} 20. Qc2 {[%clk 0:01:53.4]} 20... d5 {[%clk 0:00:41.9]}
21. Bf4 {[%clk 0:01:42.4]} 21... Ng6 {[%clk 0:00:23.9]} 22. Bg5 {[%clk
0:01:24.4]} 22... d4 {[%clk 0:00:20.8]} 23. Rc1 {[%clk 0:01:19.7]} 23... Re8
{[%clk 0:00:19]} 24. b4 {[%clk 0:01:09.8]} 24... h6 {[%clk 0:00:17.8]} 25. Bxf6
{[%clk 0:01:08.9]} 25... Bxf6 {[%clk 0:00:18]} 26. Nd6 {[%clk 0:01:08.4]} 26...
Qe6 {[%clk 0:00:15.2]} 27. Nxe8 {[%clk 0:01:07]} 27... Qxe8 {[%clk 0:00:15.2]}
28. bxc5 {[%clk 0:01:07.1]} 28... Ne5 {[%clk 0:00:15.3]} 29. c6 {[%clk
0:01:06.5]} 29... Bg5 {[%clk 0:00:14.6]} 30. c7 {[%clk 0:01:05.5]} 1-0

[Event "*** SCC Grand Prix: Titled Tuesday Blitz"]
[Site "Chess.com"]
[Date "2020.10.13"]
[Round "2"]
[White "anasta10"]
[Black "Gabix_94"]
[Result "0-1"]
[WhiteElo "2417"]
[BlackElo "2787"]
[TimeControl "180+1"]
[EndTime "10:16:20 PDT"]
[Termination "Gabix_94 won by resignation"]

1. d4 {[%clk 0:02:54.6]} 1... Nf6 {[%clk 0:02:59.3]} 2. c4 {[%clk 0:02:54.6]}
2... g6 {[%clk 0:02:59.5]} 3. Nc3 {[%clk 0:02:53.2]} 3... Bg7 {[%clk 0:02:59.8]}
4. e4 {[%clk 0:02:53.5]} 4... d6 {[%clk 0:03:00]} 5. Bd3 {[%clk 0:02:54]} 5...
O-O {[%clk 0:03:00.3]} 6. Nge2 {[%clk 0:02:54.4]} 6... Nc6 {[%clk 0:03:00.8]} 7.
O-O {[%clk 0:02:54.1]} 7... e5 {[%clk 0:03:01.2]} 8. d5 {[%clk 0:02:54.5]} 8...
Nd4 {[%clk 0:03:01.6]} 9. Kh1 {[%clk 0:02:51.2]} 9... c5 {[%clk 0:02:59.8]} 10.
f3 {[%clk 0:02:48.4]} 10... Rb8 {[%clk 0:02:55.9]} 11. Be3 {[%clk 0:02:48.8]}
11... a6 {[%clk 0:02:55.8]} 12. Rb1 {[%clk 0:02:48.1]} 12... Nd7 {[%clk
0:02:39.8]} 13. a3 {[%clk 0:02:45.8]} 13... f5 {[%clk 0:02:37.8]} 14. exf5
{[%clk 0:02:44]} 14... gxf5 {[%clk 0:02:38.7]} 15. b4 {[%clk 0:02:43.6]} 15...
b6 {[%clk 0:02:29.8]} 16. Qd2 {[%clk 0:02:18.7]} 16... Qf6 {[%clk 0:02:27]} 17.
a4 {[%clk 0:01:56.3]} 17... cxb4 {[%clk 0:02:24.4]} 18. Rxb4 {[%clk 0:01:57.2]}
18... a5 {[%clk 0:02:20.5]} 19. Rbb1 {[%clk 0:01:56]} 19... Nc5 {[%clk
0:02:16.9]} 20. Nb5 {[%clk 0:01:56.4]} 20... Nxe2 {[%clk 0:02:08.6]} 21. Qxe2
{[%clk 0:01:50.6]} 21... Nxa4 {[%clk 0:02:04.9]} 22. Qd2 {[%clk 0:01:38]} 22...
Bd7 {[%clk 0:02:02.1]} 23. Na7 {[%clk 0:01:34]} 23... Nc5 {[%clk 0:01:56.1]} 24.
Nc6 {[%clk 0:01:33.5]} 24... Rbe8 {[%clk 0:01:54.6]} 25. Rxb6 {[%clk 0:01:28.5]}
25... Nxd3 {[%clk 0:01:48.8]} 26. Qxd3 {[%clk 0:01:27]} 26... a4 {[%clk
0:01:44.6]} 27. Rb7 {[%clk 0:01:22.8]} 27... Bc8 {[%clk 0:01:40]} 28. Ra7 {[%clk
0:01:21.2]} 28... f4 {[%clk 0:01:29.7]} 29. Bb6 {[%clk 0:01:00.4]} 29... Rf7
{[%clk 0:01:26.2]} 30. Rxf7 {[%clk 0:00:51.8]} 30... Qxf7 {[%clk 0:01:27.1]} 31.
Qa3 {[%clk 0:00:50.6]} 31... Bf5 {[%clk 0:01:22.8]} 32. Qxd6 {[%clk 0:00:41.7]}
32... Bd3 {[%clk 0:01:19.7]} 33. Rc1 {[%clk 0:00:30.9]} 33... e4 {[%clk
0:01:17.9]} 34. fxe4 {[%clk 0:00:28.1]} 34... f3 {[%clk 0:01:17.4]} 35. Qg3
{[%clk 0:00:09.2]} 35... fxg2+ {[%clk 0:01:13.9]} 36. Kg1 {[%clk 0:00:09.3]}
36... Qf1+ {[%clk 0:01:12.8]} 0-1

[Event "*** SCC Grand Prix: Titled Tuesday Blitz"]
[Site "Chess.com"]
[Date "2020.10.13"]
[Round "2"]
[White "barriochess"]
[Black "Shota_Azaladze"]
[Result "0-1"]
[WhiteElo "2262"]
[BlackElo "2647"]
[TimeControl "180+1"]
[EndTime "10:16:22 PDT"]
[Termination "Shota_Azaladze won by resignation"]

1. d4 {[%clk 0:03:00.9]} 1... d5 {[%clk 0:02:58.6]} 2. c4 {[%clk 0:03:01.1]}
2... Nf6 {[%clk 0:02:57.9]} 3. Nc3 {[%clk 0:02:59.5]} 3... e6 {[%clk 0:02:57.6]}
4. Nf3 {[%clk 0:02:58.4]} 4... c6 {[%clk 0:02:56.2]} 5. g3 {[%clk 0:02:56.5]}
5... Bd6 {[%clk 0:02:55.8]} 6. Bg2 {[%clk 0:02:56]} 6... O-O {[%clk 0:02:56.3]}
7. O-O {[%clk 0:02:52.3]} 7... Nbd7 {[%clk 0:02:56.3]} 8. Bg5 {[%clk 0:02:48.4]}
8... h6 {[%clk 0:02:53.7]} 9. Bxf6 {[%clk 0:02:47.7]} 9... Nxf6 {[%clk
0:02:53.7]} 10. Qd3 {[%clk 0:02:45.8]} 10... b6 {[%clk 0:02:36.2]} 11. b3 {[%clk
0:02:43.9]} 11... Ba6 {[%clk 0:02:35.8]} 12. e4 {[%clk 0:02:43.6]} 12... Bb4
{[%clk 0:02:32.2]} 13. e5 {[%clk 0:02:29.3]} 13... Bxc3 {[%clk 0:02:11.5]} 14.
Qxc3 {[%clk 0:02:17.3]} 14... Nd7 {[%clk 0:02:07.5]} 15. Rfd1 {[%clk 0:02:11.8]}
15... Qe7 {[%clk 0:02:06.8]} 16. cxd5 {[%clk 0:02:08.1]} 16... cxd5 {[%clk
0:02:06.2]} 17. Rac1 {[%clk 0:02:06]} 17... Qa3 {[%clk 0:02:01.3]} 18. Qd2
{[%clk 0:01:59.5]} 18... Rac8 {[%clk 0:01:56.9]} 19. Bf1 {[%clk 0:01:57.5]}
19... Nb8 {[%clk 0:01:40.2]} 20. h4 {[%clk 0:01:52.8]} 20... Bxf1 {[%clk
0:01:37.4]} 21. Kxf1 {[%clk 0:01:52.7]} 21... Na6 {[%clk 0:01:38]} 22. Ne1
{[%clk 0:01:09.1]} 22... Nb4 {[%clk 0:01:35.2]} 23. Nc2 {[%clk 0:01:08.3]} 23...
Qxa2 {[%clk 0:01:04.1]} 24. Qxb4 {[%clk 0:00:59.5]} 24... Rxc2 {[%clk
0:01:02.9]} 25. Rxc2 {[%clk 0:00:59.3]} 25... Qxc2 {[%clk 0:01:03.8]} 26. Rd2
{[%clk 0:00:58.5]} 26... Qc1+ {[%clk 0:01:03.8]} 27. Ke2 {[%clk 0:00:57.8]}
27... Rc8 {[%clk 0:01:01.5]} 28. Qa4 {[%clk 0:00:54]} 28... Qh1 {[%clk 0:01:00]}
29. Rd1 {[%clk 0:00:20.2]} 29... Rc2+ {[%clk 0:00:54.9]} 0-1

[Event "*** SCC Grand Prix: Titled Tuesday Blitz"]
[Site "Chess.com"]
[Date "2020.10.13"]
[Round "2"]
[White "Rap_woyska"]
[Black "baki83"]
[Result "0-1"]
[WhiteElo "2513"]
[BlackElo "2758"]
[TimeControl "180+1"]
[EndTime "10:16:29 PDT"]
[Termination "baki83 won by resignation"]

1. c4 {[%clk 0:03:00.9]} 1... e5 {[%clk 0:02:59.3]} 2. Nc3 {[%clk 0:03:00.4]}
2... Nc6 {[%clk 0:02:59.4]} 3. Nf3 {[%clk 0:03:00.7]} 3... g6 {[%clk 0:02:58.9]}
4. d4 {[%clk 0:02:56.8]} 4... exd4 {[%clk 0:02:59.1]} 5. Nxd4 {[%clk 0:02:57.7]}
5... Bg7 {[%clk 0:02:59.6]} 6. Nxc6 {[%clk 0:02:58.3]} 6... dxc6 {[%clk
0:02:58.4]} 7. Qxd8+ {[%clk 0:02:56.9]} 7... Kxd8 {[%clk 0:02:59.3]} 8. Bg5+
{[%clk 0:02:41]} 8... Ke8 {[%clk 0:02:56.3]} 9. O-O-O {[%clk 0:02:40.7]} 9...
Be6 {[%clk 0:02:56]} 10. e3 {[%clk 0:02:33.8]} 10... Nf6 {[%clk 0:02:51.1]} 11.
Be2 {[%clk 0:02:22.5]} 11... Nd7 {[%clk 0:02:47.9]} 12. Kc2 {[%clk 0:01:59.1]}
12... a5 {[%clk 0:02:45.2]} 13. g4 {[%clk 0:01:45.6]} 13... Ne5 {[%clk 0:02:35]}
14. Ne4 {[%clk 0:01:20.7]} 14... Bxg4 {[%clk 0:02:17.2]} 15. Bxg4 {[%clk
0:00:57.3]} 15... Nxg4 {[%clk 0:02:18.1]} 16. h3 {[%clk 0:00:54.3]} 16... Ne5
{[%clk 0:01:57.2]} 17. Nf6+ {[%clk 0:00:47.7]} 17... Kf8 {[%clk 0:01:57]} 18.
Nd7+ {[%clk 0:00:30.5]} 18... Nxd7 {[%clk 0:01:46.4]} 19. Rxd7 {[%clk
0:00:31.4]} 19... Be5 {[%clk 0:01:46.5]} 20. c5 {[%clk 0:00:20.4]} 20... h6
{[%clk 0:01:32.4]} 21. Be7+ {[%clk 0:00:15]} 21... Ke8 {[%clk 0:01:32.2]} 22.
Rhd1 {[%clk 0:00:15.4]} 22... Bd6 {[%clk 0:01:32.5]} 23. R7xd6 {[%clk
0:00:06.4]} 23... cxd6 {[%clk 0:01:31.7]} 24. cxd6 {[%clk 0:00:06.3]} 24... Kd7
{[%clk 0:01:31.7]} 25. Kc3 {[%clk 0:00:06.6]} 25... g5 {[%clk 0:01:22.5]} 26.
Kd4 {[%clk 0:00:06]} 26... Rhg8 {[%clk 0:01:22.5]} 27. Rg1 {[%clk 0:00:05.7]}
27... Rg6 {[%clk 0:01:22.2]} 28. Ke5 {[%clk 0:00:06.1]} 28... a4 {[%clk
0:01:18.4]} 29. Kf5 {[%clk 0:00:06.2]} 29... Ra5+ {[%clk 0:01:16.8]} 30. Kg4
{[%clk 0:00:05.3]} 30... h5+ {[%clk 0:01:07.4]} 31. Kxh5 {[%clk 0:00:03.7]}
31... g4+ {[%clk 0:01:07.4]} 32. Kh4 {[%clk 0:00:02.5]} 32... Rh6+ {[%clk
0:01:06.3]} 33. Kxg4 {[%clk 0:00:01.9]} 33... Rg6+ {[%clk 0:01:05.9]} 0-1

[Event "*** SCC Grand Prix: Titled Tuesday Blitz"]
[Site "Chess.com"]
[Date "2020.10.13"]
[Round "2"]
[White "picturesquecheck"]
[Black "Oligan22"]
[Result "0-1"]
[WhiteElo "2215"]
[BlackElo "2439"]
[TimeControl "180+1"]
[EndTime "10:16:29 PDT"]
[Termination "Oligan22 won by resignation"]

1. e4 {[%clk 0:02:51.9]} 1... c5 {[%clk 0:03:00.1]} 2. Nf3 {[%clk 0:02:49]} 2...
e6 {[%clk 0:03:00.5]} 3. d4 {[%clk 0:02:46.7]} 3... cxd4 {[%clk 0:03:01.4]} 4.
Nxd4 {[%clk 0:02:47.5]} 4... a6 {[%clk 0:03:01.8]} 5. Be2 {[%clk 0:02:47]} 5...
Qc7 {[%clk 0:03:02.1]} 6. O-O {[%clk 0:02:46.9]} 6... Nf6 {[%clk 0:03:02.7]} 7.
Nc3 {[%clk 0:02:45.5]} 7... b5 {[%clk 0:03:02.1]} 8. e5 {[%clk 0:02:39.1]} 8...
Qxe5 {[%clk 0:02:58.9]} 9. Bf3 {[%clk 0:02:39.1]} 9... Ra7 {[%clk 0:02:57.5]}
10. Re1 {[%clk 0:02:37.5]} 10... Qc7 {[%clk 0:02:48.9]} 11. Be3 {[%clk
0:02:36.6]} 11... Bc5 {[%clk 0:02:42]} 12. Ndxb5 {[%clk 0:02:23.7]} 12... axb5
{[%clk 0:02:42.9]} 13. Nxb5 {[%clk 0:02:24.2]} 13... Qb6 {[%clk 0:02:42.5]} 14.
Nd6+ {[%clk 0:02:21.2]} 14... Ke7 {[%clk 0:02:38.3]} 15. Nc4 {[%clk 0:02:02.1]}
15... Qc7 {[%clk 0:02:38.1]} 16. b4 {[%clk 0:01:50.6]} 16... Bxe3 {[%clk
0:02:35.7]} 17. Nxe3 {[%clk 0:01:50.2]} 17... Bb7 {[%clk 0:02:08.8]} 18. c4
{[%clk 0:01:40.6]} 18... Bxf3 {[%clk 0:02:01.1]} 19. Qxf3 {[%clk 0:01:41.5]}
19... Nc6 {[%clk 0:01:59.8]} 20. Nf5+ {[%clk 0:01:40.5]} 20... Kf8 {[%clk
0:01:59.9]} 21. b5 {[%clk 0:01:38.3]} 21... Ne5 {[%clk 0:01:56.4]} 22. Qg3
{[%clk 0:01:30.3]} 22... Nfg4 {[%clk 0:01:49.5]} 23. Nxg7 {[%clk 0:01:16.2]}
23... Kxg7 {[%clk 0:01:47.7]} 24. h3 {[%clk 0:01:15.5]} 24... h5 {[%clk
0:01:27.6]} 25. hxg4 {[%clk 0:01:15]} 25... Nxg4 {[%clk 0:01:25.8]} 26. Qc3+
{[%clk 0:01:13.8]} 26... f6 {[%clk 0:01:23.9]} 27. g3 {[%clk 0:01:10.2]} 27...
Qc5 {[%clk 0:01:19]} 28. Qf3 {[%clk 0:01:03.5]} 28... Ra3 {[%clk 0:01:16.9]} 29.
Qg2 {[%clk 0:00:54.9]} 29... h4 {[%clk 0:01:12.1]} 30. gxh4 {[%clk 0:00:48.6]}
30... Rxh4 {[%clk 0:01:13]} 31. Re4 {[%clk 0:00:48.2]} 31... f5 {[%clk
0:01:12.6]} 32. Rf4 {[%clk 0:00:41.5]} 32... Rah3 {[%clk 0:01:12.3]} 33. Rd1
{[%clk 0:00:31.9]} 33... Rh1+ {[%clk 0:01:03.1]} 34. Qxh1 {[%clk 0:00:29.5]}
34... Rxh1+ {[%clk 0:01:04]} 35. Kxh1 {[%clk 0:00:30.2]} 35... Nxf2+ {[%clk
0:01:04.3]} 36. Rxf2 {[%clk 0:00:28.9]} 36... Qxf2 {[%clk 0:01:05.2]} 37. Rxd7+
{[%clk 0:00:29.5]} 37... Kf6 {[%clk 0:01:05.8]} 38. Rc7 {[%clk 0:00:27.1]} 38...
f4 {[%clk 0:01:05.8]} 39. Rc5 {[%clk 0:00:23.4]} 39... f3 {[%clk 0:01:05.7]} 0-1

[Event "*** SCC Grand Prix: Titled Tuesday Blitz"]
[Site "Chess.com"]
[Date "2020.10.13"]
[Round "2"]
[White "queen_iryna"]
[Black "Brave_spirit12"]
[Result "1-0"]
[WhiteElo "2293"]
[BlackElo "2476"]
[TimeControl "180+1"]
[EndTime "10:16:30 PDT"]
[Termination "queen_iryna won on time"]

1. e4 {[%clk 0:03:00.9]} 1... e6 {[%clk 0:03:00.1]} 2. d4 {[%clk 0:03:00.5]}
2... d5 {[%clk 0:03:01]} 3. Nc3 {[%clk 0:03:01]} 3... Nf6 {[%clk 0:03:01]} 4.
Bg5 {[%clk 0:03:00.2]} 4... Be7 {[%clk 0:03:00.8]} 5. e5 {[%clk 0:02:59.2]} 5...
Nfd7 {[%clk 0:03:01]} 6. Bxe7 {[%clk 0:03:00.1]} 6... Qxe7 {[%clk 0:03:01.9]} 7.
f4 {[%clk 0:02:59.6]} 7... a6 {[%clk 0:03:01.8]} 8. Nf3 {[%clk 0:03:00]} 8... c5
{[%clk 0:03:01.9]} 9. Qd2 {[%clk 0:02:56.9]} 9... Nc6 {[%clk 0:03:02.1]} 10.
dxc5 {[%clk 0:02:56.5]} 10... Nxc5 {[%clk 0:03:01.1]} 11. Bd3 {[%clk 0:02:56.1]}
11... O-O {[%clk 0:02:59.1]} 12. O-O {[%clk 0:02:55.6]} 12... f6 {[%clk
0:02:58.7]} 13. Rae1 {[%clk 0:02:51.6]} 13... Bd7 {[%clk 0:02:54.9]} 14. exf6
{[%clk 0:02:44.7]} 14... Qxf6 {[%clk 0:02:52.5]} 15. Ne5 {[%clk 0:02:26.4]}
15... Nxe5 {[%clk 0:02:50.9]} 16. fxe5 {[%clk 0:02:13.5]} 16... Qh4 {[%clk
0:02:50.2]} 17. Qe3 {[%clk 0:02:00.2]} 17... Nxd3 {[%clk 0:01:46.5]} 18. cxd3
{[%clk 0:01:49.7]} 18... d4 {[%clk 0:01:00.6]} 19. Qe4 {[%clk 0:01:49.2]} 19...
Qxe4 {[%clk 0:00:55.8]} 20. Nxe4 {[%clk 0:01:50.1]} 20... Bb5 {[%clk 0:00:45.1]}
21. Nf2 {[%clk 0:01:27.2]} 21... Rf5 {[%clk 0:00:41.1]} 22. b3 {[%clk 0:01:12]}
22... Rc8 {[%clk 0:00:40.3]} 23. a4 {[%clk 0:01:11]} 23... Bc6 {[%clk
0:00:38.7]} 24. Ne4 {[%clk 0:00:53.1]} 24... Rxe5 {[%clk 0:00:30.6]} 25. Nd6
{[%clk 0:00:46.9]} 25... Rxe1 {[%clk 0:00:21.5]} 26. Rxe1 {[%clk 0:00:47.8]} 1-0

[Event "*** SCC Grand Prix: Titled Tuesday Blitz"]
[Site "Chess.com"]
[Date "2020.10.13"]
[Round "2"]
[White "mjray79"]
[Black "BikingBrian"]
[Result "1-0"]
[WhiteElo "2424"]
[BlackElo "2201"]
[TimeControl "180+1"]
[EndTime "10:16:30 PDT"]
[Termination "mjray79 won by resignation"]

1. d4 {[%clk 0:03:00.9]} 1... Nf6 {[%clk 0:02:58.1]} 2. c4 {[%clk 0:03:00.5]}
2... g6 {[%clk 0:02:58.6]} 3. Nc3 {[%clk 0:02:59.8]} 3... Bg7 {[%clk 0:02:58.9]}
4. e4 {[%clk 0:02:59.1]} 4... d6 {[%clk 0:02:59.5]} 5. Nge2 {[%clk 0:02:57]}
5... O-O {[%clk 0:02:57.7]} 6. Ng3 {[%clk 0:02:57]} 6... c5 {[%clk 0:02:57.5]}
7. d5 {[%clk 0:02:56.7]} 7... e6 {[%clk 0:02:58]} 8. Be2 {[%clk 0:02:56.3]} 8...
exd5 {[%clk 0:02:58.2]} 9. cxd5 {[%clk 0:02:57.2]} 9... a6 {[%clk 0:02:57.5]}
10. a4 {[%clk 0:02:57.1]} 10... h5 {[%clk 0:02:57.2]} 11. O-O {[%clk 0:02:55.6]}
11... h4 {[%clk 0:02:56.6]} 12. Nh1 {[%clk 0:02:55.7]} 12... Nh7 {[%clk
0:02:44.9]} 13. f3 {[%clk 0:02:54.2]} 13... f5 {[%clk 0:02:44.2]} 14. Nf2 {[%clk
0:02:53]} 14... Nd7 {[%clk 0:02:37]} 15. exf5 {[%clk 0:02:51.4]} 15... gxf5
{[%clk 0:02:34.2]} 16. Bf4 {[%clk 0:02:48.6]} 16... Ne5 {[%clk 0:02:30.3]} 17.
Nd3 {[%clk 0:02:43.5]} 17... Ng6 {[%clk 0:02:28.5]} 18. Be3 {[%clk 0:02:41.8]}
18... Re8 {[%clk 0:02:26.8]} 19. Bf2 {[%clk 0:02:40]} 19... Rb8 {[%clk
0:02:24.4]} 20. a5 {[%clk 0:02:37.1]} 20... b5 {[%clk 0:02:16.5]} 21. axb6
{[%clk 0:02:38]} 21... Rxb6 {[%clk 0:02:16.7]} 22. Rc1 {[%clk 0:02:29.7]} 22...
Ne5 {[%clk 0:02:09.8]} 23. Nf4 {[%clk 0:02:17.2]} 23... Rxb2 {[%clk 0:01:56.5]}
24. Ne6 {[%clk 0:02:13.2]} 24... Rxe6 {[%clk 0:01:35.7]} 25. dxe6 {[%clk
0:02:14.1]} 25... Bxe6 {[%clk 0:01:35.7]} 26. Bxc5 {[%clk 0:02:00.8]} 26... d5
{[%clk 0:01:21.1]} 27. Bd4 {[%clk 0:01:54.7]} 27... Rb4 {[%clk 0:01:09.9]} 28.
Bf2 {[%clk 0:01:48.3]} 28... d4 {[%clk 0:00:45.5]} 29. Na4 {[%clk 0:01:47.8]}
29... Qa5 {[%clk 0:00:40.7]} 30. Nc5 {[%clk 0:01:42.9]} 30... Bc4 {[%clk
0:00:34.9]} 31. Bxc4+ {[%clk 0:01:26.4]} 31... Rxc4 {[%clk 0:00:31.7]} 32. Rxc4
{[%clk 0:01:22.8]} 32... Nxc4 {[%clk 0:00:32.6]} 33. Bxd4 {[%clk 0:01:16.4]}
33... Nd2 {[%clk 0:00:26.8]} 34. Nb3 {[%clk 0:00:52.2]} 34... Nxb3 {[%clk
0:00:25.6]} 35. Qxb3+ {[%clk 0:00:51.2]} 35... Kf8 {[%clk 0:00:23]} 36. Qb8+
{[%clk 0:00:50]} 36... Kf7 {[%clk 0:00:23]} 37. Qb7+ {[%clk 0:00:49.8]} 37...
Ke6 {[%clk 0:00:23.4]} 38. Qxg7 {[%clk 0:00:49.1]} 1-0

[Event "*** SCC Grand Prix: Titled Tuesday Blitz"]
[Site "Chess.com"]
[Date "2020.10.13"]
[Round "2"]
[White "BursaBBSatranc"]
[Black "GigaQuparadze"]
[Result "0-1"]
[WhiteElo "2601"]
[BlackElo "2968"]
[TimeControl "180+1"]
[EndTime "10:16:35 PDT"]
[Termination "GigaQuparadze won by resignation"]

1. d4 {[%clk 0:03:00.9]} 1... Nf6 {[%clk 0:02:58.9]} 2. Bf4 {[%clk 0:03:00.1]}
2... b6 {[%clk 0:02:58.3]} 3. e3 {[%clk 0:03:00]} 3... Bb7 {[%clk 0:02:58.2]} 4.
Nf3 {[%clk 0:03:00.5]} 4... g6 {[%clk 0:02:58.2]} 5. Nbd2 {[%clk 0:03:00.9]}
5... Bg7 {[%clk 0:02:57.3]} 6. h3 {[%clk 0:03:01.1]} 6... O-O {[%clk 0:02:57.1]}
7. Bc4 {[%clk 0:02:58.6]} 7... d6 {[%clk 0:02:56.6]} 8. c3 {[%clk 0:02:58.4]}
8... Nbd7 {[%clk 0:02:56.4]} 9. O-O {[%clk 0:02:58.3]} 9... c5 {[%clk
0:02:48.4]} 10. a4 {[%clk 0:02:57.8]} 10... a6 {[%clk 0:02:47.8]} 11. Bh2 {[%clk
0:02:41.4]} 11... Bc6 {[%clk 0:02:32.2]} 12. Qe2 {[%clk 0:02:35.9]} 12... Qc8
{[%clk 0:02:32]} 13. e4 {[%clk 0:01:54.7]} 13... Nxe4 {[%clk 0:02:20.9]} 14.
Nxe4 {[%clk 0:01:50.5]} 14... d5 {[%clk 0:02:19.8]} 15. Bd3 {[%clk 0:01:35.8]}
15... dxe4 {[%clk 0:02:15]} 16. Bxe4 {[%clk 0:01:36.7]} 16... cxd4 {[%clk
0:02:02.5]} 17. cxd4 {[%clk 0:01:30.5]} 17... Bxe4 {[%clk 0:02:01]} 18. Qxe4
{[%clk 0:01:30.7]} 18... Qd8 {[%clk 0:01:59.9]} 19. Rfc1 {[%clk 0:01:17.6]}
19... Nf6 {[%clk 0:01:59.4]} 20. Qb7 {[%clk 0:01:09.5]} 20... Nd5 {[%clk
0:01:35.4]} 21. Ne5 {[%clk 0:00:57.4]} 21... e6 {[%clk 0:01:34.5]} 22. Nc6
{[%clk 0:00:28.6]} 22... Qg5 {[%clk 0:01:28.8]} 23. Bg3 {[%clk 0:00:15]} 23...
h5 {[%clk 0:01:21.2]} 24. h4 {[%clk 0:00:15]} 24... Qg4 {[%clk 0:01:18.4]} 25.
Ne7+ {[%clk 0:00:10.1]} 25... Nxe7 {[%clk 0:01:17.5]} 26. Qxe7 {[%clk 0:00:11]}
26... Bxd4 {[%clk 0:01:17.2]} 27. Kh2 {[%clk 0:00:10.5]} 27... Bc5 {[%clk
0:01:11.4]} 28. Qg5 {[%clk 0:00:06.8]} 28... Qxg5 {[%clk 0:01:10.7]} 29. hxg5
{[%clk 0:00:07.7]} 29... Rfd8 {[%clk 0:01:10.7]} 30. Rc2 {[%clk 0:00:07.4]}
30... Rd5 {[%clk 0:01:09.8]} 31. f4 {[%clk 0:00:05.3]} 31... a5 {[%clk
0:01:09.7]} 32. Re1 {[%clk 0:00:04]} 32... Rad8 {[%clk 0:01:09.4]} 33. Ree2
{[%clk 0:00:04.1]} 33... Rd3 {[%clk 0:01:07.6]} 34. b3 {[%clk 0:00:02.1]} 34...
Rxb3 {[%clk 0:01:06]} 0-1

[Event "*** SCC Grand Prix: Titled Tuesday Blitz"]
[Site "Chess.com"]
[Date "2020.10.13"]
[Round "2"]
[White "ManuDavid2910"]
[Black "icychess54"]
[Result "1-0"]
[WhiteElo "2649"]
[BlackElo "2284"]
[TimeControl "180+1"]
[EndTime "10:16:35 PDT"]
[Termination "ManuDavid2910 won by checkmate"]

1. e4 {[%clk 0:03:00.1]} 1... c5 {[%clk 0:03:00.1]} 2. Nf3 {[%clk 0:03:00.7]}
2... d6 {[%clk 0:03:00.7]} 3. c3 {[%clk 0:03:01]} 3... Nf6 {[%clk 0:03:00.8]} 4.
Bc4 {[%clk 0:03:01.8]} 4... Nc6 {[%clk 0:02:58.2]} 5. d3 {[%clk 0:03:01.9]} 5...
e6 {[%clk 0:02:57.8]} 6. O-O {[%clk 0:03:02.3]} 6... Be7 {[%clk 0:02:57.8]} 7.
Bb3 {[%clk 0:03:02.8]} 7... O-O {[%clk 0:02:56.8]} 8. Re1 {[%clk 0:03:03.5]}
8... a6 {[%clk 0:02:57]} 9. d4 {[%clk 0:03:02.6]} 9... e5 {[%clk 0:02:33]} 10.
h3 {[%clk 0:03:02.1]} 10... b5 {[%clk 0:02:27.7]} 11. Bg5 {[%clk 0:02:49]} 11...
c4 {[%clk 0:02:14.4]} 12. Bc2 {[%clk 0:02:46.6]} 12... Nh5 {[%clk 0:01:59.1]}
13. Be3 {[%clk 0:02:27.2]} 13... g6 {[%clk 0:01:54.7]} 14. Nbd2 {[%clk
0:02:23.8]} 14... Bf6 {[%clk 0:01:29.8]} 15. b3 {[%clk 0:02:20.2]} 15... cxb3
{[%clk 0:01:15.7]} 16. Bxb3 {[%clk 0:02:21]} 16... b4 {[%clk 0:01:14.1]} 17. Bd5
{[%clk 0:02:18.5]} 17... bxc3 {[%clk 0:01:07.8]} 18. Nc4 {[%clk 0:02:13.7]}
18... Bb7 {[%clk 0:00:49.9]} 19. Rb1 {[%clk 0:02:08.8]} 19... Qe7 {[%clk
0:00:23.6]} 20. Rb6 {[%clk 0:01:49.5]} 20... exd4 {[%clk 0:00:20.9]} 21. Nxd4
{[%clk 0:01:39.8]} 21... Bxd4 {[%clk 0:00:19.7]} 22. Bxd4 {[%clk 0:01:40.3]}
22... Nxd4 {[%clk 0:00:19.7]} 23. Rxb7 {[%clk 0:01:40.4]} 23... Qe5 {[%clk
0:00:20]} 24. Nxe5 {[%clk 0:01:38.7]} 24... dxe5 {[%clk 0:00:19.2]} 25. Qc1
{[%clk 0:01:32.7]} 25... Nf4 {[%clk 0:00:17.6]} 26. Kh2 {[%clk 0:01:29.9]} 26...
Nd3 {[%clk 0:00:17.4]} 27. Qxc3 {[%clk 0:01:30]} 27... Nxe1 {[%clk 0:00:17.9]}
28. Qxe1 {[%clk 0:01:30.8]} 28... Rac8 {[%clk 0:00:18.3]} 29. Qa5 {[%clk
0:01:29.7]} 29... Rc2 {[%clk 0:00:17.9]} 30. Kg3 {[%clk 0:01:18.3]} 30... h5
{[%clk 0:00:17.6]} 31. Qxa6 {[%clk 0:01:16.2]} 31... h4+ {[%clk 0:00:17.6]} 32.
Kxh4 {[%clk 0:01:15.5]} 32... Rxf2 {[%clk 0:00:17.6]} 33. Qxg6+ {[%clk
0:01:15.2]} 33... Kh8 {[%clk 0:00:16.6]} 34. Qh5+ {[%clk 0:01:13.4]} 34... Kg8
{[%clk 0:00:16.8]} 35. Qg5+ {[%clk 0:01:13.3]} 35... Kh8 {[%clk 0:00:16.9]} 36.
Qxe5+ {[%clk 0:01:13.1]} 36... Kh7 {[%clk 0:00:15.1]} 37. Qxd4 {[%clk
0:01:12.1]} 37... Rxg2 {[%clk 0:00:13.2]} 38. Rxf7+ {[%clk 0:01:12]} 38... Rxf7
{[%clk 0:00:11.7]} 39. Bxf7 {[%clk 0:01:12.9]} 39... Kh6 {[%clk 0:00:11.3]} 40.
Qh8# {[%clk 0:01:12.4]} 1-0